Cogmind - Beta 13 @@@ ROGUE MODE // 2024.05.28 @ 22:42:04 Player: Zeldest Result: Destroyed by G-47 Trooper with Particle Gun Performance ------------- Evolutions (2) 1000 Regions Visited (3) 600 Robots Destroyed (32) 160 Value Destroyed (915) 915 Prototype IDs (1) 20 Alien Tech Used (0) 0 Bonus (0) 0 TOTAL SCORE: 2695 Bonus ------- None Cogmind --------- Core Integrity 0/550 Matter 300/300 Energy 100/100 System Corruption 0% Temperature Cool (9) Movement Core (400) Ox7 Location -8/Materials Parts ------- > --- POWER (1) -------- (None) > --- PROPULSION (2) --- (None) > --- UTILITY (6) ------ Large Storage Unit Advanced Visual Processing Unit > --- WEAPON (2) ------- Hammer > --- INVENTORY (15) --- Light Deuterium Engine VTOL Module VTOL Module Datajack Datajack Peak State ------------ > --- POWER ------------ Light Nuclear Core > --- PROPULSION ------- VTOL Module Improved Flight Unit > --- UTILITY ---------- Large Storage Unit Advanced Visual Processing Unit > --- WEAPON ----------- Heavy Assault Cannon > --- INVENTORY -------- Light Deuterium Engine VTOL Module VTOL Module VTOL Module Datajack Datajack [Rating: 19] Favorites ----------- Power Ion Engine Engine Ion Engine Power Core Light Nuclear Core Propulsion Aluminum Leg Leg Aluminum Leg Wheel Wheel Flight Unit VTOL Module Utility Large Storage Unit Device ECM Suite Storage Large Storage Unit Processor Advanced Visual Processing Unit Protection Backup Plating I Weapon Backup Laser I Energy Gun Backup Laser I Ballistic Gun Assault Rifle Ballistic Cannon Heavy Assault Cannon Launcher Grenade Launcher Impact Weapon Hammer Build | -11 -10 -10 -8 ------- Run | Yrd Mat Sub Mat Slots Evolved 4 | . . . 4 Power . | . . . . Propulsion . | . . . . Utility 4 | . . . 4 Weapon . | . . . . Parts Attached 32 | 7 5 5 15 Power 5 | 1 1 1 2 Engine 4 | 1 1 1 1 Core 1 | . . . 1 Reactor . | . . . . Propulsion 15 | 3 2 3 7 Treads . | . . . . Leg 2 | . 2 . . Wheel 6 | 3 . 3 . Hover . | . . . . Flight 7 | . . . 7 Utility 4 | 1 1 . 2 Device 1 | . . . 1 Storage 2 | 1 1 . . Processor 1 | . . . 1 Hackware . | . . . . Protection . | . . . . Artifact . | . . . . Weapon 8 | 2 1 1 4 Energy Gun 3 | . 1 1 1 Energy Cannon . | . . . . Ballistic Gun 2 | 2 . . . Ballistic Cannon 1 | . . . 1 Launcher 1 | . . . 1 Special Weapon . | . . . . Impact Weapon 1 | . . . 1 Slashing Weapon . | . . . . Piercing Weapon . | . . . . Special Melee Weapon . | . . . . Unidentified Prototypes 1 | . . . 1 Parts Lost 16 | . 4 5 7 Power 2 | . . 1 1 Propulsion 7 | . 2 2 3 Utility 2 | . . 1 1 Weapon 5 | . 2 1 2 Highest Loss Streak 7 | . 4 5 7 To Critical Strikes 1 | . . 1 . Average Slot Usage (%) 79 | . 90 72 65 Engine 12 | . 14 13 4 Leg 11 | . 21 4 . Wheel 5 | . 5 8 . Flight 3 | . . . 15 Device 1 | . . . 7 Storage 13 | . 14 14 9 Processor 1 | . . . 9 Protection 4 | . 8 2 . Energy Gun 21 | . 19 27 13 Ballistic Gun 2 | . 5 . . Naked Turns . | . . . . Heaviest Build 37 | 11 29 30 37 Greatest Support 40 | 26 20 40 40 Greatest Overweight (x) 9 | . 3 9 7 Average Overweight (x) 1 | . . 2 3 Largest Inventory Capacity 15 | 8 15 15 15 Average Capacity 13 | 7 12 15 15 Most Carried 9 | 5 5 7 9 Average Carried 4 | 1 2 5 6 Final Capacity 15 | 8 15 15 15 Final Carried 5 | 2 5 5 5 Class Distribution -------------------- 100% | Mutant Dominant Class ---------------- Mutant | -10/Materials Mutant | -10/Subcaves Mutant | -8/Materials Resources | -11 -10 -10 -8 ----------- Run | Yrd Mat Sub Mat Matter Collected 804 | 284 157 40 323 Remotely . | . . . . Salvage Created 966 | 54 378 80 454 Parts 61 | 6 26 8 21 Haulers Intercepted . | . . . . Recyclers Shooed . | . . . . Parts Field Recycled . | . . . . Retrieved Matter . | . . . . Parts Self-Destructed 8 | . . 8 . Prevented . | . . . . Kills | -11 -10 -10 -8 ------- Run | Yrd Mat Sub Mat Combat Hostiles Destroyed 28 | . 12 2 14 Guns 21 | . 12 2 7 Cannons 4 | . . . 4 AOE 2 | . . . 2 Classes Destroyed 9 | 1 2 1 5 Worker 2 | . . . 2 Tunneler 2 | 2 . . . Swarmer 9 | . 6 . 3 Grunt 12 | . 6 . 6 Brawler 1 | . . . 1 Duelist 2 | . . . 2 Sentry 1 | . . . 1 Hunter 1 | . . . 1 Subdweller 2 | . . 2 . Best Kill Streak 8 | 1 3 1 8 Combat Bots Only 8 | . 3 1 8 Max Kills in Single Turn 2 | 1 1 1 2 Gunslinging . | . . . . Exploded 1 | . . . 1 Melee . | . . . . Uniques/NPCs Destroyed . | . . . . Combat | -11 -10 -10 -8 -------- Run | Yrd Mat Sub Mat Hostile Shots Fired 202 | . 65 14 123 Missed 56 | . 17 2 37 Damage Taken 2197 | . 589 289 1319 Core 693 | . 110 18 565 Absorbed by Shields . | . . . . Core Remaining (%) 74 | 100 . 48 . Volleys Fired 113 | 13 48 16 36 Largest 2 | 2 2 2 2 Hottest 90 | 40 80 90 90 Shots Fired 193 | 26 86 25 56 Gun 170 | 26 86 25 33 Cannon 16 | . . . 16 Launcher 7 | . . . 7 Special . | . . . . Kinetic 85 | 26 43 . 16 Thermal 101 | . 43 25 33 Explosive 7 | . . . 7 Electromagnetic . | . . . . Robot Hit Streak 20 | 5 11 17 20 Robot Miss Streak 4 | 4 3 . 2 Penetration Max 1 | . . . 1 Secondary Targets 1 | . 1 . . Max Gunslinging Chain 1 | . 1 . . Shots Hit Robots 129 | 16 57 15 41 Core Hits 58 | 4 19 5 30 Critical Kills . | . . . . Critical Parts Destroyed 2 | . . . 2 Critical Strikes 3 | . . . 3 Destroy 1 | . . . 1 Blast 1 | . . . 1 Smash 1 | . . . 1 Melee Attacks 4 | . . . 4 Impact 4 | . . . 4 Slashing . | . . . . Piercing . | . . . . Sneak Attacks . | . . . . Combat Hostiles . | . . . . Follow-up Attacks . | . . . . Damage Inflicted 2486 | 165 620 156 1545 Guns 1331 | 165 620 156 390 Cannons 587 | . . . 587 Explosions 492 | . . . 492 Melee 76 | . . . 76 Ramming . | . . . . Kinetic 1072 | 165 320 . 587 Thermal 846 | . 300 156 390 Explosive 492 | . . . 492 Electromagnetic . | . . . . Impact 76 | . . . 76 Slashing . | . . . . Piercing . | . . . . Highest Corruption . | . . . . Average Corruption . | . . . . Corruption Purged . | . . . . Corruption Blocked . | . . . . Overload Shots . | . . . . Overflow Damage 145 | . . . 145 Projectiles 122 | . . . 122 Explosions 4 | . . . 4 Melee 19 | . . . 19 Knockbacks 4 | . . . 4 Impact . | . . . . Kinetic 4 | . . . 4 Secondary . | . . . . Self-Inflicted Damage 77 | . . . 77 Shots 3 | . . . 3 Rammed . | . . . . Targets Rammed . | . . . . Kicked . | . . . . Crushed . | . . . . Highest Temperature 262 | . 171 . 262 Average Temperature 80 | . 48 . 109 Received Heat Transfer 1008 | . 312 66 630 Effects 3 | . . . 3 Interference 3 | . . . 3 Siege Activations . | . . . . Robots Corrupted . | . . . . Combat Hostiles . | . . . . Parts Fried . | . . . . Impact Corruptions 2 | . . . 2 Robots Melted . | . . . . Combat Hostiles . | . . . . Parts Melted 1 | . 1 . . Heat Transferred 2238 | . 999 543 696 Parts Sabotaged . | . . . . Parts Stolen . | . . . . Parts Stripped . | . . . . Power Chain Reactions . | . . . . Alert | -11 -10 -10 -8 ------- Run | Yrd Mat Sub Mat Peak Influence 385 | 10 205 . 385 Initial 6 | . 6 . . Average 83 | 4 81 . 110 Maximum Alert Level 1 | . 1 . 1 Low Security (%) 87 | 100 93 . 71 Level 1 12 | . 6 . 28 Level 2 . | . . . . Level 3 . | . . . . Level 4 . | . . . . Level 5 . | . . . . High Security . | . . . . Max Security . | . . . . Squads Dispatched 7 | . 1 . 6 Investigation 2 | . 1 . 1 Extermination . | . . . . Reinforcement 3 | . . . 3 Assault . | . . . . Garrison 2 | . . . 2 Intercept . | . . . . Searches Triggered . | . . . . Construction Impeded 1 | . . . 1 Haulers Reinforced . | . . . . Active Scanning Responses . | . . . . Cargo Convoy Interrupts . | . . . . Stealth | -11 -10 -10 -8 --------- Run | Yrd Mat Sub Mat Distress Signals 3 | . 1 . 2 Communications Jammed . | . . . . Distress Signals . | . . . . Times Spotted 42 | . 18 3 21 Peak Tracking Total 6 | . 5 1 6 Tactical Retreats 4 | . 2 . 2 Traps | -11 -10 -10 -8 ------- Run | Yrd Mat Sub Mat Traps Triggered 2 | . 1 1 . Indirectly . | . . . . Trap Hack Attempts . | . . . . Triggered . | . . . . Disarmed . | . . . . Reprogrammed . | . . . . Reused . | . . . . Traps Extracted . | . . . . Installed . | . . . . Triggered . | . . . . Machines | -11 -10 -10 -8 ---------- Run | Yrd Mat Sub Mat Machines Disabled . | . . . . Max in Single Turn . | . . . . Machines Repaired . | . . . . Machines Dismantled . | . . . . Machines Sabotaged . | . . . . Overloaded Fab Kills . | . . . . Hacking | -11 -10 -10 -8 --------- Run | Yrd Mat Sub Mat Machines Accessed 8 | . 6 . 2 Terminals 7 | . 5 . 2 Fabricators . | . . . . Repair Stations 1 | . 1 . . Recycling Units . | . . . . Scanalyzers . | . . . . Garrison Access . | . . . . Total Hacks 26 | . 16 . 10 Successful 11 | . 7 . 4 Failed 15 | . 9 . 6 Catastrophic 2 | . 1 . 1 Database Lockouts . | . . . . Manual 24 | . 15 . 9 Terminals 25 | . 15 . 10 Fabricators . | . . . . Repair Stations 1 | . 1 . . Recycling Units . | . . . . Scanalyzers . | . . . . Garrison Access . | . . . . Terminal Hacks . | . . . . Fabricator Hacks . | . . . . Repair Station Hacks 1 | . 1 . . Refit 1 | . 1 . . Recycling Unit Hacks . | . . . . Scanalyzer . | . . . . Garrison Access Hacks . | . . . . Unauthorized Hacks 10 | . 6 . 4 Terminals 10 | . 6 . 4 Assimilate 2 | . 1 . 1 Botnet 5 | . 3 . 2 Operators 3 | . 2 . 1 Fabricators . | . . . . Repair Stations . | . . . . Recycling Units . | . . . . Scanalyzers . | . . . . Garrison Access . | . . . . Data Cores Recovered . | . . . . Used . | . . . . Hacking Detections 8 | . 6 . 2 Full Trace Events 1 | . . . 1 Feedback Events . | . . . . Feedback Blocked . | . . . . Robot Schematics Acquired . | . . . . Robots Built . | . . . . Authchips . | . . . . Time . | . . . . Total Robot Build Rating . | . . . . Part Schematics Acquired . | . . . . Parts Built . | . . . . Authchips . | . . . . Time . | . . . . Total Part Build Rating . | . . . . Parts Repaired . | . . . . Time . | . . . . Parts Recycled . | . . . . Recycled Matter . | . . . . Retrieved Matter . | . . . . Retrieved Components . | . . . . Parts Scanalyzed . | . . . . Part Schematics Acquired . | . . . . Parts Damaged . | . . . . Bothacking | -11 -10 -10 -8 ------------ Run | Yrd Mat Sub Mat Used RIF Installer . | . . . . Robots Hacked . | . . . . Non-combat . | . . . . Combat . | . . . . Robot Hacks Applied . | . . . . Relay Couplers Released . | . . . . Fabnet Peak Effective % . | . . . . Robots Rewired . | . . . . Allies Hacked . | . . . . Hacks Repelled . | . . . . Allies | -11 -10 -10 -8 -------- Run | Yrd Mat Sub Mat Total Allies . | . . . . Largest Group . | . . . . Highest-Rated Group . | . . . . Highest-Rated Ally . | . . . . Total Orders . | . . . . Ally Attacks . | . . . . Total Damage . | . . . . Kills . | . . . . Allies Corrupted . | . . . . Allies Melted . | . . . . Intel | -11 -10 -10 -8 ------- Run | Yrd Mat Sub Mat Robot Analysis Total . | . . . . Derelict Logs Recovered 1 | . . 1 . Drone Launches . | . . . . Drone Recoveries . | . . . . Exploration | -11 -10 -10 -8 ------------- Run | Yrd Mat Sub Mat Turns Passed 2098 | 109 946 646 397 Spaces Moved 906 | 75 478 263 90 Core 90 | 20 5 64 1 Treads . | . . . . Legs 428 | . 385 43 . Wheels 307 | 55 88 156 8 Hover . | . . . . Flight 81 | . . . 81 Fastest Speed 50 | 50 80 110 110 Average Speed 175 | 75 149 217 277 Slowest Speed 500 | 90 200 500 460 Overloaded Moves . | . . . . Propulsion Burnouts . | . . . . Robots Hopped . | . . . . Cave-ins Triggered . | . . . . Exploration Rate (%) 28 | 5 69 21 17 Regions Visited 3 Branch Regions 1 Pre-discovered Areas 1 | . . 1 . Known Exits Taken . | . . . . Unknown Exits Taken 3 | 1 1 1 . Scrap Searched . | . . . . Spaces Dug . | . . . . Terrain Destroyed 30 | . . . 30 Melee . | . . . . Projectile 8 | . . . 8 AOE 22 | . . . 22 Terrain Rammed . | . . . . Walls Destroyed . | . . . . Machines Disabled . | . . . . Actions | -11 -10 -10 -8 --------- Run | Yrd Mat Sub Mat Total 1206 | 104 627 309 166 Wait 112 | . 87 20 5 Move 903 | 74 477 262 90 Hop . | . . . . Pick Up 32 | 9 8 5 10 Fast Attach . | . . . . Attach 21 | 6 3 5 7 Detach . | . . . . Swap 11 | 1 2 . 8 Drop 10 | 1 2 1 6 Fire 113 | 13 48 16 36 Melee 4 | . . . 4 Ram . | . . . . Kick . | . . . . Crush . | . . . . Escape Stasis . | . . . . Rewire . | . . . . Trap . | . . . . Miscellaneous . | . . . . Route ------- -11/Scrapyard -10/Materials (discovered 3 exits: [*Mat] / [*Min] / [*Sub]) -10/Subcaves -8/Materials History --------- Turn | Location | Event 8 | -11/Scrapyard | Discovered new exit (range 15) 110 | -11/Scrapyard | Entered Materials 301 | -10/Materials | Build established: Mutant 340 | -10/Materials | Lost 4 parts (2n2w) 632 | -10/Materials | Discovered new exit (range 12) 861 | -10/Materials | Discovered new exit (range 16) 1046 | -10/Materials | Discovered new exit (range 6) 1056 | -10/Materials | Entered Subcaves 1209 | -10/Subcaves | Lost 5 parts (1p2n1u1w) 1522 | -10/Subcaves | Core integrity fell below 50% 1523 | -10/Subcaves | A swath of the cavern ceiling suddenly collapsed 1694 | -10/Subcaves | Discovered new exit (range 6) 1702 | -10/Subcaves | Entered Materials 1702 | -8/Materials | Evolved 4 slots: Utility x4 1947 | -8/Materials | Garrison activated, responded to threat 2020 | -8/Materials | Core integrity fell below 50% 2084 | -8/Materials | Core integrity fell below 20% 2099 | -8/Materials | Destroyed by G-47 Trooper with Particle Gun Last Messages --------------- 02075_ L-31 Rogue knocked back. 02076_ U-05 Engineer builds a Wall. 02077_ L-31 Rogue destroyed. 02078_ Hvy. Assault Cannon destroyed. 02080_ Acquired 164 matter. 02082_ VTOL Module destroyed. 02084_ Acquired Hammer. 02088_ U-05 Engineer lays Concrete. 02088_ VTOL Module destroyed. 02088_ G-47 Trooper suffers critical hit (Smash). 02088_ Destroyed Imp. Heat Sink. 02088_ G-47 Trooper system corrupted by crushing effect. 02089_ G-47 Trooper system terminally corrupted. 02089_ K-01 Serf collects debris. 02089_ U-05 Engineer lays Concrete. 02090_ Acquired 37 matter. 02090_ U-05 Engineer lays Concrete. 02098_ Critical hit (Burn: +37). Map ----- +----------------------------------------------------+ | | | | | | | ?????????????????????????????????????????????? | | ??????????????????????????#??????????????????? | | ???????????????????????? #??????????????????? | | ????????????????????????" #?##???????????????? | | ##??????????????? ""???"" #? ???????????????? | | #????????????????"""??"" ?? #???????????????? | | #???????????????? ? ??? #???????????????? | | #????????????????? ???? #???????????????? | | #????"????????????? ????? #???????????????? | | #????"??############/###### #???????????????? | | #????"??# ## #???????????????? | | +#???? ??# ## #???????????????? | | ####+#+## o a #??????????????#? | | # ## #??????????? #? | | +% ## ######+### #? | | ^ # ## ^ #? | | ###### # ## % ^ #? | | #???# # ## # ] ]==^ """???? | | #???# # %= ## % [#= ]== """???? | | #???# # % ### %#%%!u ]== """ ??? | | #???# ! ??# #gg=% #? | | ##### ??# %#!%= #? | | / #?#" #@# #####o#########? | | ######+### #?## % #g#"###??????????????? | | ### #% ????????????????? | | ??# """ """ # ! #u""" ???????????????? | | ??# """ "" # + "G" ??????????????? | | ??# """ " " # """ # " " ??????????????? | | ??# """ """ # """ # ?????????????? | | ??# """ """ #! """ # """ ????????????? | | ??# & # # """ #???????????? | | ??# "T" # ] # ""? +???????????? | | ??########### """ # ? # ??????????? | | ????????????# """? ####+???## ?????????? | | ????????????# ""????[ ?????????? ?????????? | | ????????????? ??????? ?????????? ????????? | | ????????????? ???????????????????? #???????? | | ?????????????# #?????????????????????????????? | | ?????????????? ??????????????????????????????? | | ?????????????? ??????????????????????????????? | | ?????????????????????????????????????????????? | | ?????????????????????????????????????????????? | | ?????????????????????????????????????????????? | | ?????????????????????????????????????????????? | | ?????????????????????????????????????????????? | | ?????????????????????????????????????????????? | | ?????????????????????????????????????????????? | +----------------------------------------------------+ Best States ------------- Heat Dissipation 31 Energy Generation 14 Energy Capacity 250 Matter Stores 300 Matter Capacity 300 Sight Range 20 Terrain Scan Density 10 ECM Strength 1 Armor Coverage 80 Evasion (%) 55 Item Schematics ----------------- None Robot Schematics ------------------ None Fabricated ------------ Nothing Alien Tech Used ----------------- None Achievements -------------- None Challenges ------------ None Game ------ Seed MicroRestorationCloak Manual? 0 Play Time 00:16:03 Cumulative 39.0 hours Start 2024.05.28 @ 22:26:24 End 2024.05.28 @ 22:42:04 Sessions 1 Manual Loads 0 Difficulty Rogue Special Mode None Game No. 76 Rogue 76 Adventurer 0 Explorer 0 Win Type - Total 0 Types 0/0/0/0/0/0/0/0/0 Lore% 23 Gallery% 33 Achievement% 28 Wizard Run 0 Options --------- Layout 1 ASCII 0 Keyboard 0 Movement Numpad Keybinds 0 Fullscreen 1 Font 24/Smallcaps Map View 50x35 Zoom Use 0% Tactical HUD 1 Map Filters NONE Filters NONE Steam 1 RUN: fc72e5d1-be59-481b-80be-4b8247ac83f7